Department Family,Entity,Payment Date,Expense Type,Budget Holder,Expense Area,Supplier Name,Transactions Number, Amount (�) ,VAT Registration Number
FCO,FCO,13-Jun-11,Information Systems Maintenance,17155,DG CHANGE & DELIVERY,3M UNITED KINGDOM PLC,1019107,"61,687.50",
FCO,FCO,13-Jun-11,VAT (Input) (Oracle Sub-Ledger Control Account),0,NON CASH & UNALLOCATED COSTS,3M UNITED KINGDOM PLC,1019107,"12,337.50",
FCO,FCO,30-Jun-11,Training Course: Fees,18819,DG CHANGE & DELIVERY,ASHRIDGE MANAGEMENT COLLEGE,1020576,"24,000.00",
FCO,FCO,30-Jun-11,Training Course: Fees,18819,DG CHANGE & DELIVERY,ASHRIDGE MANAGEMENT COLLEGE,1020576,"16,000.00",
FCO,FCO,30-Jun-11,Training Course: Fees,18819,DG CHANGE & DELIVERY,ASHRIDGE MANAGEMENT COLLEGE,1020576,"1,300.00",
FCO,FCO,30-Jun-11,Training Course: Fees,18819,DG CHANGE & DELIVERY,ASHRIDGE MANAGEMENT COLLEGE,1020576,180,
FCO,FCO,30-Jun-11,Training Course: Fees,18819,DG CHANGE & DELIVERY,ASHRIDGE MANAGEMENT COLLEGE,1020576,140,
FCO,FCO,30-Jun-11,Training Course: Fees,18819,DG CHANGE & DELIVERY,ASHRIDGE MANAGEMENT COLLEGE,1020576,90,
FCO,FCO,30-Jun-11,Training Course: Fees,18819,DG CHANGE & DELIVERY,ASHRIDGE MANAGEMENT COLLEGE,1020576,160,
FCO,FCO,30-Jun-11,Training Course: Fees,18819,DG CHANGE & DELIVERY,ASHRIDGE MANAGEMENT COLLEGE,1020576,700,
FCO,FCO,30-Jun-11,Training Course: Fees,18819,DG CHANGE & DELIVERY,ASHRIDGE MANAGEMENT COLLEGE,1020576,"1,466.00",
FCO,FCO,30-Jun-11,VAT (Input) (Oracle Sub-Ledger Control Account),0,NON CASH & UNALLOCATED COSTS,ASHRIDGE MANAGEMENT COLLEGE,1020576,"8,775.20",
FCO,FCO,30-Jun-11,Training Course: Fees,18819,DG CHANGE & DELIVERY,ASHRIDGE MANAGEMENT COLLEGE,1020576,"-24,000.00",
FCO,FCO,30-Jun-11,Training Course: Fees,18819,DG CHANGE & DELIVERY,ASHRIDGE MANAGEMENT COLLEGE,1020576,"-16,000.00",
FCO,FCO,30-Jun-11,Training Course: Fees,18819,DG CHANGE & DELIVERY,ASHRIDGE MANAGEMENT COLLEGE,1020576,"-1,300.00",
FCO,FCO,30-Jun-11,Training Course: Fees,18819,DG CHANGE & DELIVERY,ASHRIDGE MANAGEMENT COLLEGE,1020576,-180,
FCO,FCO,30-Jun-11,Training Course: Fees,18819,DG CHANGE & DELIVERY,ASHRIDGE MANAGEMENT COLLEGE,1020576,-140,
FCO,FCO,30-Jun-11,Training Course: Fees,18819,DG CHANGE & DELIVERY,ASHRIDGE MANAGEMENT COLLEGE,1020576,-90,
FCO,FCO,30-Jun-11,Training Course: Fees,18819,DG CHANGE & DELIVERY,ASHRIDGE MANAGEMENT COLLEGE,1020576,"24,000.00",
FCO,FCO,30-Jun-11,Training Course: Fees,18819,DG CHANGE & DELIVERY,ASHRIDGE MANAGEMENT COLLEGE,1020576,"16,000.00",
FCO,FCO,30-Jun-11,Training Course: Fees,18819,DG CHANGE & DELIVERY,ASHRIDGE MANAGEMENT COLLEGE,1020576,"1,300.00",
FCO,FCO,30-Jun-11,Training Course: Fees,18819,DG CHANGE & DELIVERY,ASHRIDGE MANAGEMENT COLLEGE,1020576,180,
FCO,FCO,30-Jun-11,Training Course: Fees,18819,DG CHANGE & DELIVERY,ASHRIDGE MANAGEMENT COLLEGE,1020576,140,
FCO,FCO,30-Jun-11,Training Course: Fees,18819,DG CHANGE & DELIVERY,ASHRIDGE MANAGEMENT COLLEGE,1020576,90,
FCO,FCO,30-Jun-11,VAT (Input) (Oracle Sub-Ledger Control Account),0,NON CASH & UNALLOCATED COSTS,ASHRIDGE MANAGEMENT COLLEGE,1020576,-28,
FCO,FCO,30-Jun-11,Programme Spend (Oracle Projects Control Account),401009,DG EUROPE AND GLOBALISATION,BALKAN INVESTIGATIVE REPORTING NETWORK (BIRN),2009392,"33,228.00",
FCO,FCO,14-Jun-11,Nursery Childcare Subsidy,18702,DG CHANGE & DELIVERY,BRIGHT HORIZONS FAMILY SOLUTION LTD,1019208,"41,246.00",
FCO,FCO,15-Jun-11,Recharge Suspense Account (Oracle PA Control Account),0,NON CASH & UNALLOCATED COSTS,BRITISH COUNCIL,1008764,"37,425.15",
FCO,FCO,22-Jun-11,Programme Spend (Oracle Projects Control Account),16357,DG CENTRAL GROUP,BRITISH COUNCIL,1019913,"793,131.00",
FCO,FCO,20-Jun-11,Recharge Suspense Account (Oracle PA Control Account),0,NON CASH & UNALLOCATED COSTS,BRITISH COUNCIL,2005842,"25,051.24",
FCO,FCO,20-Jun-11,General Information Services,17352,DG CHANGE & DELIVERY,BULLET MARKETING LTD,1019675,"26,854.00",
FCO,FCO,20-Jun-11,VAT (Input) (Oracle Sub-Ledger Control Account),0,NON CASH & UNALLOCATED COSTS,BULLET MARKETING LTD,1019675,"5,370.80",
FCO,FCO,15-Jun-11,IT/IS Consultancy,11361,DG CENTRAL GROUP,CAPGEMINI  UK PLC,1019412,"69,563.30",
FCO,FCO,15-Jun-11,VAT (Input) (Oracle Sub-Ledger Control Account),0,NON CASH & UNALLOCATED COSTS,CAPGEMINI  UK PLC,1019412,"13,912.66",
FCO,FCO,20-Jun-11,Corporate Strategy Consultancy,14613,DG CHANGE & DELIVERY,CAPGEMINI  UK PLC,1019678,"32,274.00",
FCO,FCO,20-Jun-11,Corporate Strategy Consultancy,14613,DG CHANGE & DELIVERY,CAPGEMINI  UK PLC,1019678,"4,780.00",
FCO,FCO,20-Jun-11,Corporate Strategy Consultancy,14613,DG CHANGE & DELIVERY,CAPGEMINI  UK PLC,1019678,462,
FCO,FCO,20-Jun-11,VAT (Input) (Oracle Sub-Ledger Control Account),0,NON CASH & UNALLOCATED COSTS,CAPGEMINI  UK PLC,1019678,"7,503.20",
FCO,FCO,24-Jun-11,Programme Spend (Oracle Projects Control Account),3051,DG EUROPE AND GLOBALISATION,CENTAR ZA NOVU POLITIKU,2009344,"27,000.00",
FCO,FCO,14-Jun-11,Project Works>10K,14652,DG CHANGE & DELIVERY,COFELY LTD - ELYO SERVICES LTD,1019225,"26,135.00",
FCO,FCO,29-Jun-11,Selling into Wider Markets,13057,DG CHANGE & DELIVERY,COTTIMORE DESIGN CONSULTANCY,1020470,"19,900.00",
FCO,FCO,29-Jun-11,Selling into Wider Markets,13057,DG CHANGE & DELIVERY,COTTIMORE DESIGN CONSULTANCY,1020470,"1,927.00",
FCO,FCO,29-Jun-11,Selling into Wider Markets,13057,DG CHANGE & DELIVERY,COTTIMORE DESIGN CONSULTANCY,1020470,"3,980.00",
FCO,FCO,29-Jun-11,Selling into Wider Markets,13057,DG CHANGE & DELIVERY,COTTIMORE DESIGN CONSULTANCY,1020470,385.4,
FCO,FCO,13-Jun-11,Programme Spend (Oracle Projects Control Account),501099,DG POLITICAL,CTA ECONOMIC AND EXPORT ANALYSTS,1019119,"34,098.85",
FCO,FCO,22-Jun-11,Nursery Childcare Subsidy,18705,DG CHANGE & DELIVERY,EDENRED,1019930,"35,850.00",
FCO,FCO,22-Jun-11,Nursery Childcare Subsidy,18705,DG CHANGE & DELIVERY,EDENRED,1019930,"1,075.50",
FCO,FCO,22-Jun-11,Nursery Childcare Subsidy,18705,DG CHANGE & DELIVERY,EDENRED,1019930,215.1,
FCO,FCO,21-Jun-11,Telephone/Telex Usage,11316,DG CENTRAL GROUP,GLOBAL CROSSING,1019793,"47,162.83",
FCO,FCO,21-Jun-11,Telephone/Telex Usage,11316,DG CENTRAL GROUP,GLOBAL CROSSING,1019793,"9,432.57",
FCO,FCO,13-Jun-11,Programme Spend (Oracle Projects Control Account),451001,DG POLITICAL,GLOBAL PARTNERS & ASSOCIATES LTD,1019129,"71,014.99",
FCO,FCO,20-Jun-11,Programme Spend (Oracle Projects Control Account),501099,DG POLITICAL,GO GROUP NLE,200003114,"37,607.71",
FCO,FCO,08-Jun-11,Commercial Partners (Visa),16554,UK VISAS DIRECTORATE,GUANGDONG CTS VISA CONSULTING SERVICE CO. LTD,2091706,"69,945.57",
FCO,FCO,02-Jun-11,Information Systems Maintenance,11303,DG CENTRAL GROUP,HEWLETT-PACKARD LTD,1018350,"51,285.72",
FCO,FCO,02-Jun-11,VAT (Input) (Oracle Sub-Ledger Control Account),0,NON CASH & UNALLOCATED COSTS,HEWLETT-PACKARD LTD,1018350,"10,257.14",
FCO,FCO,29-Jun-11,IT/IS Consultancy,11361,DG CENTRAL GROUP,HEWLETT-PACKARD LTD,1020498,"35,000.00",
FCO,FCO,29-Jun-11,VAT (Input) (Oracle Sub-Ledger Control Account),0,NON CASH & UNALLOCATED COSTS,HEWLETT-PACKARD LTD,1020498,"7,000.00",
FCO,FCO,15-Jun-11,P.A.Y.E Income Tax (Oracle PAY Control Account),0,NON CASH & UNALLOCATED COSTS,HM REVENUE AND CUSTOMS,4000358,"3,374,245.73",
FCO,FCO,15-Jun-11,National Insurance (NI) (Oracle PAY Control Account),0,NON CASH & UNALLOCATED COSTS,HM REVENUE AND CUSTOMS,4000358,"2,041,288.18",
FCO,FCO,01-Jun-11,Home Office Visa Fees: Post Collection-Payment In UK,14201,DG FINANCE,HOME OFFICE,4000298,67.91,
FCO,FCO,01-Jun-11,Home Office Visa Fees: Post Collection-Payment In UK,17052,DG CHANGE & DELIVERY,HOME OFFICE,4000298,"3,784.15",
FCO,FCO,01-Jun-11,Home Office Visa Fees: Post Collection-Payment In UK,17052,DG CHANGE & DELIVERY,HOME OFFICE,4000298,530.26,
FCO,FCO,01-Jun-11,Home Office Visa Fees: Post Collection-Payment In UK,17052,DG CHANGE & DELIVERY,HOME OFFICE,4000298,"1,487.38",
FCO,FCO,01-Jun-11,Home Office Visa Fees: Post Collection-Payment In UK,17052,DG CHANGE & DELIVERY,HOME OFFICE,4000298,500.46,
FCO,FCO,01-Jun-11,Home Office Visa Fees: Post Collection-Payment In UK,17052,DG CHANGE & DELIVERY,HOME OFFICE,4000298,"1,383.36",
FCO,FCO,01-Jun-11,Home Office Visa Fees: Post Collection-Payment In UK,17052,DG CHANGE & DELIVERY,HOME OFFICE,4000298,"14,246.92",
FCO,FCO,01-Jun-11,Home Office Visa Fees: Post Collection-Payment In UK,17052,DG CHANGE & DELIVERY,HOME OFFICE,4000298,"6,595.41",
FCO,FCO,01-Jun-11,Home Office Visa Fees: Post Collection-Payment In UK,17052,DG CHANGE & DELIVERY,HOME OFFICE,4000298,"26,312.04",
FCO,FCO,01-Jun-11,Home Office Visa Fees: Post Collection-Payment In UK,17052,DG CHANGE & DELIVERY,HOME OFFICE,4000298,100.16,
FCO,FCO,01-Jun-11,Home Office Visa Fees: Post Collection-Payment In UK,17052,DG CHANGE & DELIVERY,HOME OFFICE,4000298,"78,655.04",
FCO,FCO,01-Jun-11,Home Office Visa Fees: Post Collection-Payment In UK,17052,DG CHANGE & DELIVERY,HOME OFFICE,4000298,"-3,594.96",
FCO,FCO,01-Jun-11,Home Office Visa Fees: Post Collection-Payment In UK,17052,DG CHANGE & DELIVERY,HOME OFFICE,4000298,-600,
FCO,FCO,01-Jun-11,Home Office Visa Fees: Post Collection-Payment In UK,17052,DG CHANGE & DELIVERY,HOME OFFICE,4000298,"2,019.14",
FCO,FCO,01-Jun-11,Home Office Visa Fees: Post Collection-Payment In UK,17052,DG CHANGE & DELIVERY,HOME OFFICE,4000298,"3,818.17",
FCO,FCO,01-Jun-11,Home Office Visa Fees: Post Collection-Payment In UK,17052,DG CHANGE & DELIVERY,HOME OFFICE,4000298,"1,261.54",
FCO,FCO,01-Jun-11,Home Office Visa Fees: Post Collection-Payment In UK,17052,DG CHANGE & DELIVERY,HOME OFFICE,4000298,"-21,984.98",
FCO,FCO,01-Jun-11,Home Office Visa Fees: Post Collection-Payment In UK,17052,DG CHANGE & DELIVERY,HOME OFFICE,4000298,"168,924.21",
FCO,FCO,01-Jun-11,Home Office Visa Fees: Post Collection-Payment In UK,17052,DG CHANGE & DELIVERY,HOME OFFICE,4000298,"1,701.77",
FCO,FCO,01-Jun-11,Home Office Visa Fees: Post Collection-Payment In UK,17052,DG CHANGE & DELIVERY,HOME OFFICE,4000298,612.69,
FCO,FCO,01-Jun-11,Home Office Visa Fees: Post Collection-Payment In UK,17052,DG CHANGE & DELIVERY,HOME OFFICE,4000298,"3,857.10",
FCO,FCO,01-Jun-11,Home Office Visa Fees: Post Collection-Payment In UK,17052,DG CHANGE & DELIVERY,HOME OFFICE,4000298,"1,894.26",
FCO,FCO,01-Jun-11,Home Office Visa Fees: Post Collection-Payment In UK,17052,DG CHANGE & DELIVERY,HOME OFFICE,4000298,"4,301.54",
FCO,FCO,01-Jun-11,Home Office Visa Fees: Post Collection-Payment In UK,17052,DG CHANGE & DELIVERY,HOME OFFICE,4000298,"-1,029.23",
FCO,FCO,01-Jun-11,Home Office Visa Fees: Post Collection-Payment In UK,17052,DG CHANGE & DELIVERY,HOME OFFICE,4000298,"-1,642.21",
FCO,FCO,01-Jun-11,Home Office Visa Fees: Post Collection-Payment In UK,17052,DG CHANGE & DELIVERY,HOME OFFICE,4000298,"3,288.81",
FCO,FCO,29-Jun-11,Home Office Visa Fees: Post Collection-Payment In UK,17052,DG CHANGE & DELIVERY,HOME OFFICE,4000414,668.76,
FCO,FCO,29-Jun-11,Home Office Visa Fees: Post Collection-Payment In UK,17052,DG CHANGE & DELIVERY,HOME OFFICE,4000414,85.61,
FCO,FCO,29-Jun-11,Home Office Visa Fees: Post Collection-Payment In UK,17052,DG CHANGE & DELIVERY,HOME OFFICE,4000414,"1,988.74",
FCO,FCO,29-Jun-11,Home Office Visa Fees: Post Collection-Payment In UK,17052,DG CHANGE & DELIVERY,HOME OFFICE,4000414,"1,683.61",
FCO,FCO,29-Jun-11,Home Office Visa Fees: Post Collection-Payment In UK,17052,DG CHANGE & DELIVERY,HOME OFFICE,4000414,"5,528.01",
FCO,FCO,29-Jun-11,Home Office Visa Fees: Post Collection-Payment In UK,17052,DG CHANGE & DELIVERY,HOME OFFICE,4000414,861.82,
FCO,FCO,29-Jun-11,Home Office Visa Fees: Post Collection-Payment In UK,17052,DG CHANGE & DELIVERY,HOME OFFICE,4000414,"3,506.66",
FCO,FCO,29-Jun-11,Home Office Visa Fees: Post Collection-Payment In UK,17052,DG CHANGE & DELIVERY,HOME OFFICE,4000414,921,
FCO,FCO,29-Jun-11,Home Office Visa Fees: Post Collection-Payment In UK,17052,DG CHANGE & DELIVERY,HOME OFFICE,4000414,"3,712.18",
FCO,FCO,29-Jun-11,Home Office Visa Fees: Post Collection-Payment In UK,17052,DG CHANGE & DELIVERY,HOME OFFICE,4000414,"4,168.98",
FCO,FCO,29-Jun-11,Home Office Visa Fees: Post Collection-Payment In UK,17052,DG CHANGE & DELIVERY,HOME OFFICE,4000414,"1,643.38",
FCO,FCO,29-Jun-11,Home Office Visa Fees: Post Collection-Payment In UK,17052,DG CHANGE & DELIVERY,HOME OFFICE,4000414,"1,036.91",
FCO,FCO,29-Jun-11,Home Office Visa Fees: Post Collection-Payment In UK,17052,DG CHANGE & DELIVERY,HOME OFFICE,4000414,708.07,
FCO,FCO,29-Jun-11,Home Office Visa Fees: Post Collection-Payment In UK,17052,DG CHANGE & DELIVERY,HOME OFFICE,4000414,"12,040.57",
FCO,FCO,29-Jun-11,Home Office Visa Fees: Post Collection-Payment In UK,17052,DG CHANGE & DELIVERY,HOME OFFICE,4000414,"5,778.04",
FCO,FCO,29-Jun-11,Home Office Visa Fees: Post Collection-Payment In UK,17052,DG CHANGE & DELIVERY,HOME OFFICE,4000414,"2,553.08",
FCO,FCO,29-Jun-11,Home Office Visa Fees: Post Collection-Payment In UK,17052,DG CHANGE & DELIVERY,HOME OFFICE,4000414,"1,174.67",
FCO,FCO,29-Jun-11,Home Office Visa Fees: Post Collection-Payment In UK,17052,DG CHANGE & DELIVERY,HOME OFFICE,4000414,"1,435.00",
FCO,FCO,29-Jun-11,Home Office Visa Fees: Post Collection-Payment In UK,17052,DG CHANGE & DELIVERY,HOME OFFICE,4000414,"36,183.43",
FCO,FCO,29-Jun-11,Home Office Visa Fees: Post Collection-Payment In UK,17052,DG CHANGE & DELIVERY,HOME OFFICE,4000414,"1,143.61",
FCO,FCO,29-Jun-11,Home Office Visa Fees: Post Collection-Payment In UK,17052,DG CHANGE & DELIVERY,HOME OFFICE,4000414,"1,081.57",
FCO,FCO,29-Jun-11,Home Office Visa Fees: Post Collection-Payment In UK,17052,DG CHANGE & DELIVERY,HOME OFFICE,4000414,974.63,
FCO,FCO,29-Jun-11,Home Office Visa Fees: Post Collection-Payment In UK,17052,DG CHANGE & DELIVERY,HOME OFFICE,4000414,208,
FCO,FCO,29-Jun-11,Home Office Visa Fees: Post Collection-Payment In UK,17052,DG CHANGE & DELIVERY,HOME OFFICE,4000414,"2,503.35",
FCO,FCO,29-Jun-11,Home Office Visa Fees: Post Collection-Payment In UK,17052,DG CHANGE & DELIVERY,HOME OFFICE,4000414,"1,620.84",
FCO,FCO,29-Jun-11,Home Office Visa Fees: Post Collection-Payment In UK,17052,DG CHANGE & DELIVERY,HOME OFFICE,4000414,"1,776.63",
FCO,FCO,29-Jun-11,Home Office Visa Fees: Post Collection-Payment In UK,17052,DG CHANGE & DELIVERY,HOME OFFICE,4000414,756,
FCO,FCO,29-Jun-11,Home Office Visa Fees: Post Collection-Payment In UK,17052,DG CHANGE & DELIVERY,HOME OFFICE,4000414,"1,777.02",
FCO,FCO,29-Jun-11,Home Office Visa Fees: Post Collection-Payment In UK,17052,DG CHANGE & DELIVERY,HOME OFFICE,4000414,"1,372.09",
FCO,FCO,29-Jun-11,Home Office Visa Fees: Post Collection-Payment In UK,17052,DG CHANGE & DELIVERY,HOME OFFICE,4000414,583.36,
FCO,FCO,29-Jun-11,Home Office Visa Fees: Post Collection-Payment In UK,17052,DG CHANGE & DELIVERY,HOME OFFICE,4000414,"9,196.42",
FCO,FCO,29-Jun-11,Home Office Visa Fees: Post Collection-Payment In UK,17052,DG CHANGE & DELIVERY,HOME OFFICE,4000414,"8,837.35",
FCO,FCO,29-Jun-11,Home Office Visa Fees: Post Collection-Payment In UK,17052,DG CHANGE & DELIVERY,HOME OFFICE,4000414,"1,809.94",
FCO,FCO,29-Jun-11,Home Office Visa Fees: Post Collection-Payment In UK,17052,DG CHANGE & DELIVERY,HOME OFFICE,4000414,"8,957.07",
FCO,FCO,29-Jun-11,Home Office Visa Fees: Post Collection-Payment In UK,17052,DG CHANGE & DELIVERY,HOME OFFICE,4000414,"22,003.50",
FCO,FCO,29-Jun-11,Home Office Visa Fees: Post Collection-Payment In UK,17052,DG CHANGE & DELIVERY,HOME OFFICE,4000414,485.5,
FCO,FCO,29-Jun-11,Home Office Visa Fees: Post Collection-Payment In UK,17052,DG CHANGE & DELIVERY,HOME OFFICE,4000414,"2,101.95",
FCO,FCO,29-Jun-11,Home Office Visa Fees: Post Collection-Payment In UK,17052,DG CHANGE & DELIVERY,HOME OFFICE,4000414,"14,190.10",
FCO,FCO,29-Jun-11,Home Office Visa Fees: Post Collection-Payment In UK,17052,DG CHANGE & DELIVERY,HOME OFFICE,4000414,"4,117.04",
FCO,FCO,29-Jun-11,Home Office Visa Fees: Post Collection-Payment In UK,17052,DG CHANGE & DELIVERY,HOME OFFICE,4000414,"1,082.00",
FCO,FCO,06-Jun-11,Maintenance M and E,14679,DG CHANGE & DELIVERY,INTERSERVE FM LTD,10635,"2,588.93",
FCO,FCO,06-Jun-11,Maintenance B and Ce,14679,DG CHANGE & DELIVERY,INTERSERVE FM LTD,10635,287.32,
FCO,FCO,06-Jun-11,Minor New Works <10K,14679,DG CHANGE & DELIVERY,INTERSERVE FM LTD,10635,"1,004.38",
FCO,FCO,06-Jun-11,Grounds Mainteance,14679,DG CHANGE & DELIVERY,INTERSERVE FM LTD,10635,257.31,
FCO,FCO,06-Jun-11,Cleaning,14679,DG CHANGE & DELIVERY,INTERSERVE FM LTD,10635,"11,309.75",
FCO,FCO,06-Jun-11,Cleaning,14679,DG CHANGE & DELIVERY,INTERSERVE FM LTD,10635,368.18,
FCO,FCO,06-Jun-11,Miscellaneous Expenditure,14679,DG CHANGE & DELIVERY,INTERSERVE FM LTD,10635,127.73,
FCO,FCO,06-Jun-11,Waste Disposal,14679,DG CHANGE & DELIVERY,INTERSERVE FM LTD,10635,287.69,
FCO,FCO,06-Jun-11,Reception Services,14679,DG CHANGE & DELIVERY,INTERSERVE FM LTD,10635,"7,682.93",
FCO,FCO,06-Jun-11,Contract Porterage,14679,DG CHANGE & DELIVERY,INTERSERVE FM LTD,10635,"6,020.02",
FCO,FCO,06-Jun-11,Stationery - General,14679,DG CHANGE & DELIVERY,INTERSERVE FM LTD,10635,"1,920.73",
FCO,FCO,06-Jun-11,Corporate Strategy Consultancy,14679,DG CHANGE & DELIVERY,INTERSERVE FM LTD,10635,166.37,
FCO,FCO,06-Jun-11,Property and Construction Consultancy,14679,DG CHANGE & DELIVERY,INTERSERVE FM LTD,10635,"12,962.16",
FCO,FCO,06-Jun-11,Rematching / Reinstatement,14679,DG CHANGE & DELIVERY,INTERSERVE FM LTD,10635,196.44,
FCO,FCO,06-Jun-11,Contract Fees,14679,DG CHANGE & DELIVERY,INTERSERVE FM LTD,10635,"6,780.32",
FCO,FCO,06-Jun-11,Maintenance M and E,14685,DG CHANGE & DELIVERY,INTERSERVE FM LTD,10636,"4,764.61",
FCO,FCO,06-Jun-11,Maintenance B and Ce,14685,DG CHANGE & DELIVERY,INTERSERVE FM LTD,10636,161.5,
FCO,FCO,06-Jun-11,Minor New Works <10K,14685,DG CHANGE & DELIVERY,INTERSERVE FM LTD,10636,"1,476.58",
FCO,FCO,06-Jun-11,Grounds Mainteance,14685,DG CHANGE & DELIVERY,INTERSERVE FM LTD,10636,21.43,
FCO,FCO,06-Jun-11,Cleaning,14685,DG CHANGE & DELIVERY,INTERSERVE FM LTD,10636,"4,877.98",
FCO,FCO,06-Jun-11,Cleaning,14685,DG CHANGE & DELIVERY,INTERSERVE FM LTD,10636,211.75,
FCO,FCO,06-Jun-11,Miscellaneous Expenditure,14685,DG CHANGE & DELIVERY,INTERSERVE FM LTD,10636,174.89,
FCO,FCO,06-Jun-11,Waste Disposal,14685,DG CHANGE & DELIVERY,INTERSERVE FM LTD,10636,165.12,
FCO,FCO,06-Jun-11,Reception Services,14685,DG CHANGE & DELIVERY,INTERSERVE FM LTD,10636,"2,126.76",
FCO,FCO,06-Jun-11,Contract Porterage,14685,DG CHANGE & DELIVERY,INTERSERVE FM LTD,10636,"2,740.63",
FCO,FCO,06-Jun-11,Stationery - General,14685,DG CHANGE & DELIVERY,INTERSERVE FM LTD,10636,531.69,
FCO,FCO,06-Jun-11,Corporate Strategy Consultancy,14685,DG CHANGE & DELIVERY,INTERSERVE FM LTD,10636,366.64,
FCO,FCO,06-Jun-11,Property and Construction Consultancy,14685,DG CHANGE & DELIVERY,INTERSERVE FM LTD,10636,"4,930.41",
FCO,FCO,06-Jun-11,Contract Fees,14685,DG CHANGE & DELIVERY,INTERSERVE FM LTD,10636,"5,422.31",
FCO,FCO,06-Jun-11,Contract Fees,14685,DG CHANGE & DELIVERY,INTERSERVE FM LTD,10636,209.1,
FCO,FCO,06-Jun-11,FM Interserve Overseas Reclaimable Tax,14685,DG CHANGE & DELIVERY,INTERSERVE FM LTD,10636,"1,095.86",
FCO,FCO,06-Jun-11,FM Interserve Overseas Reclaimable Tax,14685,DG CHANGE & DELIVERY,INTERSERVE FM LTD,10636,37.15,
FCO,FCO,06-Jun-11,FM Interserve Overseas Reclaimable Tax,14685,DG CHANGE & DELIVERY,INTERSERVE FM LTD,10636,339.61,
FCO,FCO,06-Jun-11,FM Interserve Overseas Reclaimable Tax,14685,DG CHANGE & DELIVERY,INTERSERVE FM LTD,10636,4.93,
FCO,FCO,06-Jun-11,FM Interserve Overseas Reclaimable Tax,14685,DG CHANGE & DELIVERY,INTERSERVE FM LTD,10636,"1,121.94",
FCO,FCO,06-Jun-11,FM Interserve Overseas Reclaimable Tax,14685,DG CHANGE & DELIVERY,INTERSERVE FM LTD,10636,48.7,
FCO,FCO,06-Jun-11,FM Interserve Overseas Reclaimable Tax,14685,DG CHANGE & DELIVERY,INTERSERVE FM LTD,10636,40.23,
FCO,FCO,06-Jun-11,FM Interserve Overseas Reclaimable Tax,14685,DG CHANGE & DELIVERY,INTERSERVE FM LTD,10636,37.98,
FCO,FCO,06-Jun-11,FM Interserve Overseas Reclaimable Tax,14685,DG CHANGE & DELIVERY,INTERSERVE FM LTD,10636,489.16,
FCO,FCO,06-Jun-11,FM Interserve Overseas Reclaimable Tax,14685,DG CHANGE & DELIVERY,INTERSERVE FM LTD,10636,630.34,
FCO,FCO,06-Jun-11,FM Interserve Overseas Reclaimable Tax,14685,DG CHANGE & DELIVERY,INTERSERVE FM LTD,10636,122.29,
FCO,FCO,06-Jun-11,FM Interserve Overseas Reclaimable Tax,14685,DG CHANGE & DELIVERY,INTERSERVE FM LTD,10636,84.33,
FCO,FCO,06-Jun-11,FM Interserve Overseas Reclaimable Tax,14685,DG CHANGE & DELIVERY,INTERSERVE FM LTD,10636,"1,133.99",
FCO,FCO,06-Jun-11,FM Interserve Overseas Reclaimable Tax,14685,DG CHANGE & DELIVERY,INTERSERVE FM LTD,10636,"1,247.13",
FCO,FCO,06-Jun-11,FM Interserve Overseas Reclaimable Tax,14685,DG CHANGE & DELIVERY,INTERSERVE FM LTD,10636,48.09,
FCO,FCO,03-Jun-11,Maintenance M and E,14675,DG CHANGE & DELIVERY,INTERSERVE FM LTD,1002754,"2,335.28",
FCO,FCO,03-Jun-11,Minor New Works <10K,14675,DG CHANGE & DELIVERY,INTERSERVE FM LTD,1002754,"2,586.78",
FCO,FCO,03-Jun-11,Cleaning,14675,DG CHANGE & DELIVERY,INTERSERVE FM LTD,1002754,389.18,
FCO,FCO,03-Jun-11,Cleaning,14675,DG CHANGE & DELIVERY,INTERSERVE FM LTD,1002754,81.13,
FCO,FCO,03-Jun-11,Miscellaneous Expenditure,14675,DG CHANGE & DELIVERY,INTERSERVE FM LTD,1002754,124.08,
FCO,FCO,03-Jun-11,Waste Disposal,14675,DG CHANGE & DELIVERY,INTERSERVE FM LTD,1002754,18.68,
FCO,FCO,03-Jun-11,Property and Construction Consultancy,14675,DG CHANGE & DELIVERY,INTERSERVE FM LTD,1002754,"36,501.96",
FCO,FCO,03-Jun-11,Rematching / Reinstatement,14675,DG CHANGE & DELIVERY,INTERSERVE FM LTD,1002754,"5,197.70",
FCO,FCO,03-Jun-11,Contract Fees,14675,DG CHANGE & DELIVERY,INTERSERVE FM LTD,1002754,"8,076.71",
FCO,FCO,03-Jun-11,Contract Fees,14675,DG CHANGE & DELIVERY,INTERSERVE FM LTD,1002754,194.05,
FCO,FCO,03-Jun-11,FM Interserve Overseas Reclaimable Tax,14675,DG CHANGE & DELIVERY,INTERSERVE FM LTD,1002754,490.41,
FCO,FCO,03-Jun-11,FM Interserve Overseas Reclaimable Tax,14675,DG CHANGE & DELIVERY,INTERSERVE FM LTD,1002754,543.22,
FCO,FCO,03-Jun-11,FM Interserve Overseas Reclaimable Tax,14675,DG CHANGE & DELIVERY,INTERSERVE FM LTD,1002754,81.73,
FCO,FCO,03-Jun-11,FM Interserve Overseas Reclaimable Tax,14675,DG CHANGE & DELIVERY,INTERSERVE FM LTD,1002754,17.04,
FCO,FCO,03-Jun-11,FM Interserve Overseas Reclaimable Tax,14675,DG CHANGE & DELIVERY,INTERSERVE FM LTD,1002754,26.06,
FCO,FCO,03-Jun-11,FM Interserve Overseas Reclaimable Tax,14675,DG CHANGE & DELIVERY,INTERSERVE FM LTD,1002754,3.92,
FCO,FCO,03-Jun-11,FM Interserve Overseas Reclaimable Tax,14675,DG CHANGE & DELIVERY,INTERSERVE FM LTD,1002754,"7,665.41",
FCO,FCO,03-Jun-11,FM Interserve Overseas Reclaimable Tax,14675,DG CHANGE & DELIVERY,INTERSERVE FM LTD,1002754,"1,091.52",
FCO,FCO,03-Jun-11,FM Interserve Overseas Reclaimable Tax,14675,DG CHANGE & DELIVERY,INTERSERVE FM LTD,1002754,"1,696.11",
FCO,FCO,03-Jun-11,FM Interserve Overseas Reclaimable Tax,14675,DG CHANGE & DELIVERY,INTERSERVE FM LTD,1002754,40.75,
FCO,FCO,13-Jun-11,Project Works>10K,14611,DG CHANGE & DELIVERY,INTERSERVE FM LTD,1019141,"3,157.35",
FCO,FCO,13-Jun-11,Project Works>10K,14611,DG CHANGE & DELIVERY,INTERSERVE FM LTD,1019141,"5,319.00",
FCO,FCO,13-Jun-11,Project Works>10K,14612,DG CHANGE & DELIVERY,INTERSERVE FM LTD,1019141,"23,402.27",
FCO,FCO,13-Jun-11,Assets Under Construction (Oracle PA Control Account),0,NON CASH & UNALLOCATED COSTS,INTERSERVE FM LTD,1019141,"40,307.97",
FCO,FCO,13-Jun-11,Project Works>10K,14611,DG CHANGE & DELIVERY,INTERSERVE FM LTD,1019141,"1,464.64",
FCO,FCO,13-Jun-11,Project Works>10K,14611,DG CHANGE & DELIVERY,INTERSERVE FM LTD,1019141,"3,576.26",
FCO,FCO,13-Jun-11,Project Works>10K,14611,DG CHANGE & DELIVERY,INTERSERVE FM LTD,1019141,"1,927.48",
FCO,FCO,13-Jun-11,Project Works>10K,14611,DG CHANGE & DELIVERY,INTERSERVE FM LTD,1019141,"38,089.50",
FCO,FCO,13-Jun-11,Project Works>10K,14611,DG CHANGE & DELIVERY,INTERSERVE FM LTD,1019141,"5,266.96",
FCO,FCO,13-Jun-11,Project Works>10K,14611,DG CHANGE & DELIVERY,INTERSERVE FM LTD,1019141,"5,237.54",
FCO,FCO,13-Jun-11,Project Works>10K,14611,DG CHANGE & DELIVERY,INTERSERVE FM LTD,1019141,"20,534.24",
FCO,FCO,13-Jun-11,Project Works>10K,14611,DG CHANGE & DELIVERY,INTERSERVE FM LTD,1019141,"5,249.52",
FCO,FCO,13-Jun-11,Project Works>10K,14611,DG CHANGE & DELIVERY,INTERSERVE FM LTD,1019141,665.54,
FCO,FCO,13-Jun-11,Project Works>10K,14611,DG CHANGE & DELIVERY,INTERSERVE FM LTD,1019141,"3,478.04",
FCO,FCO,13-Jun-11,Project Works>10K,14611,DG CHANGE & DELIVERY,INTERSERVE FM LTD,1019141,"7,636.28",
FCO,FCO,13-Jun-11,Project Works>10K,14611,DG CHANGE & DELIVERY,INTERSERVE FM LTD,1019141,"13,779.20",
FCO,FCO,13-Jun-11,Project Works>10K,14611,DG CHANGE & DELIVERY,INTERSERVE FM LTD,1019141,"7,712.60",
FCO,FCO,13-Jun-11,Project Works>10K,14611,DG CHANGE & DELIVERY,INTERSERVE FM LTD,1019141,"2,322.99",
FCO,FCO,13-Jun-11,VAT (Input) (Oracle Sub-Ledger Control Account),0,NON CASH & UNALLOCATED COSTS,INTERSERVE FM LTD,1019141,"1,096.07",
FCO,FCO,13-Jun-11,VAT (Input) (Oracle Sub-Ledger Control Account),0,NON CASH & UNALLOCATED COSTS,INTERSERVE FM LTD,1019141,"1,063.80",
FCO,FCO,13-Jun-11,Assets Under Construction (Oracle PA Control Account),0,NON CASH & UNALLOCATED COSTS,INTERSERVE FM LTD,1019141,"8,061.59",
FCO,FCO,13-Jun-11,Project Works>10K,14611,DG CHANGE & DELIVERY,INTERSERVE FM LTD,1019141,292.93,
FCO,FCO,13-Jun-11,Project Works>10K,14611,DG CHANGE & DELIVERY,INTERSERVE FM LTD,1019141,715.25,
FCO,FCO,13-Jun-11,Project Works>10K,14611,DG CHANGE & DELIVERY,INTERSERVE FM LTD,1019141,385.5,
FCO,FCO,13-Jun-11,Project Works>10K,14611,DG CHANGE & DELIVERY,INTERSERVE FM LTD,1019141,"7,617.90",
FCO,FCO,13-Jun-11,Project Works>10K,14611,DG CHANGE & DELIVERY,INTERSERVE FM LTD,1019141,"1,053.39",
FCO,FCO,13-Jun-11,Project Works>10K,14611,DG CHANGE & DELIVERY,INTERSERVE FM LTD,1019141,"1,047.51",
FCO,FCO,13-Jun-11,Project Works>10K,14611,DG CHANGE & DELIVERY,INTERSERVE FM LTD,1019141,"4,106.85",
FCO,FCO,13-Jun-11,Project Works>10K,14611,DG CHANGE & DELIVERY,INTERSERVE FM LTD,1019141,"1,049.90",
FCO,FCO,13-Jun-11,Project Works>10K,14611,DG CHANGE & DELIVERY,INTERSERVE FM LTD,1019141,133.11,
FCO,FCO,13-Jun-11,Project Works>10K,14611,DG CHANGE & DELIVERY,INTERSERVE FM LTD,1019141,695.61,
FCO,FCO,13-Jun-11,Project Works>10K,14611,DG CHANGE & DELIVERY,INTERSERVE FM LTD,1019141,"1,527.26",
FCO,FCO,13-Jun-11,Project Works>10K,14611,DG CHANGE & DELIVERY,INTERSERVE FM LTD,1019141,"2,755.84",
FCO,FCO,13-Jun-11,Project Works>10K,14611,DG CHANGE & DELIVERY,INTERSERVE FM LTD,1019141,"1,542.52",
FCO,FCO,13-Jun-11,Project Works>10K,14612,DG CHANGE & DELIVERY,INTERSERVE FM LTD,1019141,"4,680.45",
FCO,FCO,27-Jun-11,Corporate Strategy Consultancy,14805,#N/A,ISS FACILITY SERVICES LTD FCO OP - NON POE,10719,"29,064.41",
FCO,FCO,17-Jun-11,Costs Associated with the Disposal of Capitalised Assets,14655,DG CHANGE & DELIVERY,KNIGHT FRANK,3710,"25,997.06",
FCO,FCO,16-Jun-11,IT/IS Consultancy,11316,DG CENTRAL GROUP,KPMG LLP,1019536,"19,780.00",
FCO,FCO,16-Jun-11,IT/IS Consultancy,11316,DG CENTRAL GROUP,KPMG LLP,1019536,"14,620.00",
FCO,FCO,16-Jun-11,IT/IS Consultancy,11316,DG CENTRAL GROUP,KPMG LLP,1019536,"20,400.00",
FCO,FCO,16-Jun-11,IT/IS Consultancy,11316,DG CENTRAL GROUP,KPMG LLP,1019536,"17,595.00",
FCO,FCO,16-Jun-11,IT/IS Consultancy,11316,DG CENTRAL GROUP,KPMG LLP,1019536,"11,475.00",
FCO,FCO,16-Jun-11,IT/IS Consultancy,11316,DG CENTRAL GROUP,KPMG LLP,1019536,"12,622.50",
FCO,FCO,16-Jun-11,IT/IS Consultancy,11316,DG CENTRAL GROUP,KPMG LLP,1019536,"7,700.00",
FCO,FCO,16-Jun-11,IT/IS Consultancy,11316,DG CENTRAL GROUP,KPMG LLP,1019536,"17,212.50",
FCO,FCO,16-Jun-11,IT/IS Consultancy,11316,DG CENTRAL GROUP,KPMG LLP,1019536,"18,490.00",
FCO,FCO,16-Jun-11,IT/IS Consultancy,11316,DG CENTRAL GROUP,KPMG LLP,1019536,"14,620.00",
FCO,FCO,16-Jun-11,IT/IS Consultancy,11316,DG CENTRAL GROUP,KPMG LLP,1019536,"9,690.00",
FCO,FCO,16-Jun-11,IT/IS Consultancy,11316,DG CENTRAL GROUP,KPMG LLP,1019536,"14,535.00",
FCO,FCO,16-Jun-11,IT/IS Consultancy,11316,DG CENTRAL GROUP,KPMG LLP,1019536,"19,780.00",
FCO,FCO,16-Jun-11,IT/IS Consultancy,11316,DG CENTRAL GROUP,KPMG LLP,1019536,"18,252.90",
FCO,FCO,16-Jun-11,IT/IS Consultancy,11316,DG CENTRAL GROUP,KPMG LLP,1019536,"11,092.50",
FCO,FCO,16-Jun-11,Assets Under Construction (Oracle PA Control Account),0,NON CASH & UNALLOCATED COSTS,KPMG LLP,1019536,"19,780.00",
FCO,FCO,16-Jun-11,IT/IS Consultancy,11316,DG CENTRAL GROUP,KPMG LLP,1019536,"8,050.00",
FCO,FCO,16-Jun-11,IT/IS Consultancy,11316,DG CENTRAL GROUP,KPMG LLP,1019536,81,
FCO,FCO,16-Jun-11,VAT (Input) (Oracle Sub-Ledger Control Account),0,NON CASH & UNALLOCATED COSTS,KPMG LLP,1019536,"51,139.08",
FCO,FCO,16-Jun-11,IT/IS Consultancy,11316,DG CENTRAL GROUP,KPMG LLP,1019536,16.2,
FCO,FCO,16-Jun-11,IT/IS Consultancy,11316,DG CENTRAL GROUP,KPMG LLP,1019536,"-11,475.00",
FCO,FCO,16-Jun-11,IT/IS Consultancy,11316,DG CENTRAL GROUP,KPMG LLP,1019536,"-12,622.50",
FCO,FCO,16-Jun-11,IT/IS Consultancy,11316,DG CENTRAL GROUP,KPMG LLP,1019536,"4,972.50",
FCO,FCO,16-Jun-11,IT/IS Consultancy,11316,DG CENTRAL GROUP,KPMG LLP,1019536,"7,650.00",
FCO,FCO,16-Jun-11,IT/IS Consultancy,11316,DG CENTRAL GROUP,KPMG LLP,1019536,841.5,
FCO,FCO,16-Jun-11,IT/IS Consultancy,11316,DG CENTRAL GROUP,KPMG LLP,1019536,"10,633.50",
FCO,FCO,16-Jun-11,IT/IS Consultancy,11316,DG CENTRAL GROUP,KPMG LLP,1019536,"-14,535.00",
FCO,FCO,16-Jun-11,Assets Under Construction (Oracle PA Control Account),0,NON CASH & UNALLOCATED COSTS,KPMG LLP,1019536,"14,535.00",
FCO,FCO,14-Jun-11,Specialist Training (Devolved),12201,DG EUROPE AND GLOBALISATION,LSE ENTERPRISE LIMITED,1019302,"37,492.00",
FCO,FCO,14-Jun-11,VAT (Input) (Oracle Sub-Ledger Control Account),0,NON CASH & UNALLOCATED COSTS,LSE ENTERPRISE LIMITED,1019302,"7,498.40",
FCO,FCO,17-Jun-11,Rates Taxes Non-Residential,14657,DG CHANGE & DELIVERY,MILTON KEYNES COUNCIL,1019643,"866,600.00",
FCO,FCO,17-Jun-11,Rates Taxes Non-Residential,14657,DG CHANGE & DELIVERY,MILTON KEYNES COUNCIL,1019643,"-866,600.00",
FCO,FCO,17-Jun-11,Rates Taxes Non-Residential,14657,DG CHANGE & DELIVERY,MILTON KEYNES COUNCIL,1019643,"866,000.00",
FCO,FCO,17-Jun-11,Programme Spend (Oracle Projects Control Account),251151,DG EUROPE AND GLOBALISATION,MINES ADVISORY GROUP,1019644,"452,107.00",
FCO,FCO,29-Jun-11,Programme Spend (Oracle Projects Control Account),3051,DG EUROPE AND GLOBALISATION,MINISTARSTVO UNUTRASNJIH POSLOVA,2009385,"29,400.00",
FCO,FCO,29-Jun-11,Programme Spend (Oracle Projects Control Account),20553,DG EUROPE AND GLOBALISATION,NATIONAL INSTITUTE OF PUBLIC FINANCE AND POLICY,25867,"53,104.22",
FCO,FCO,28-Jun-11,Rent and Condominium Charges Residential,14654,DG CHANGE & DELIVERY,NCALABS CO LTD,100018185,"39,952.06",
FCO,FCO,23-Jun-11,Programme Spend (Oracle Projects Control Account),351001,DG EUROPE AND GLOBALISATION,PERKUMPULAN HRWG (KELOMPOK KERJA KOALISI NGO UNTUK ADVOKASI INTERNASIONAL HAM),5614,"38,262.25",
FCO,FCO,20-Jun-11,Information Systems Maintenance,11366,DG CENTRAL GROUP,SYMANTEC LIRIC LTD,1019723,"154,477.48",
FCO,FCO,20-Jun-11,VAT (Input) (Oracle Sub-Ledger Control Account),0,NON CASH & UNALLOCATED COSTS,SYMANTEC LIRIC LTD,1019723,"27,033.56",
FCO,FCO,16-Jun-11,Programme Spend (Oracle Projects Control Account),251151,DG EUROPE AND GLOBALISATION,UNITED NATIONS,1003720,"141,874.24",
FCO,FCO,30-Jun-11,Programme Spend (Oracle Projects Control Account),21252,DG POLITICAL,WESTMINSTER FOUNDATION FOR DEMOCRACY,1020691,"246,306.83",
,,,,#REF!,,,,,
,,,,#REF!,,,,,
,,,,#REF!,,,,,
,,,,#REF!,,,,,
,,,,#REF!,,,,,
,,,,#REF!,,,,,
,,,,#REF!,,,,,
,,,,#REF!,,,,,
,,,,#REF!,,,,,
,,,,#REF!,,,,,
,,,,#REF!,,,,,
,,,,#REF!,,,,,
,,,,#REF!,,,,,
,,,,#REF!,,,,,
